[Event "8th Mersin Open 2024"]
[Site "Mersin"]
[Date "2024.11.13"]
[Round "6"]
[White "Lobanov, Sergei"]
[Black "Schekachikhin, Maksim"]
[Result "1/2-1/2"]
[ECO "D26"]
[WhiteElo "2503"]
[BlackElo "2353"]
[Annotator "TA"]
[PlyCount "111"]
[EventDate "2024.11.10"]
[EventType "swiss"]
[EventCountry "TUR"]
[SourceTitle "playchess.com"]
[Source "ChessBase"]
[SourceQuality "1"]
[TimeControl "5400+30"]

{[%evp 21,111,43,76,56,66,34,33,31,27,25,27,12,9,0,17,15,23,21,25,27,25,16,63,45,66,24,27,22,20,22,24,27,19,34,19,33,27,27,18,24,100,26,16,6,7,2,5,6,21,20,23,8,2,5,31,26,41,45,53,43,53,49,41,0,0,0,0,7,0,0,0,0,0,0,0,0,0,0,0,0,0,0,0,0,0,0,0,0,0,0,0,0]} 1. d4 {[%emt 0:01:00]} d5 {[%emt 0:01:00]} 2. c4 {[%emt 0:00:30]} dxc4 {[%emt 0:00:30]} 3. Nf3 {[%emt 0:00:00]} Nf6 {[%emt 0:00:30]} 4. e3 {[%emt 0:00:00]} e6 {[%emt 0:00:30]} 5. Bxc4 {[%emt 0:00:00]} c5 {[%emt 0:00:00]} 6. O-O {[%emt 0:00:00]} Nc6 {[%emt 0:00:00]} 7. Qe2 {[%emt 0:04:30]} cxd4 {[%emt 0:05:30]} 8. Rd1 {[%emt 0:00:30]} Be7 {[%emt 0:01:30]} 9. exd4 {[%emt 0:00:00]} O-O {[%emt 0:00:00]} 10. Nc3 {[%emt 0:00:00]} Nb4 {[%emt 0:08:00]} 11. Ne5 {[%emt 0:00:30]} Nbd5 {[%emt 0:04:30]} 12. Bg5 {[%emt 0:03:30]} h6 {[%emt 0:04:30]} 13. Bd2 {[%emt 0:00:30]} Bd7 {[%emt 0:01:30]} 14. Nxd5 {[%emt 0:11:30] White is slightly better.} exd5 {[%emt 0:14:30]} 15. Bd3 {[%emt 0:01:30]} Bd6 {[%emt 0:04:30]} 16. Qf3 {[%emt 0:00:30]} Be6 {[%emt 0:00:30]} 17. h3 {[%emt 0:00:30]} Rc8 {[%emt 0:00:30]} 18. a3 {[%emt 0:00:30]} a6 {[%emt 0:03:30]} 19. Re1 {[%emt 0:17:30]} Re8 {[%emt 0:00:30]} 20. Rad1 {[%emt 0:00:30]} Bb8 {[%emt 0:07:30]} 21. Bb1 {[%emt 0:08:30]} Ba7 {[%emt 0:09:30]} (21... Ne4 $11) 22. Bf4 $14 {[%emt 0:01:30] White is much more active.} Bb8 {[%emt 0:09:30][%cal Of6e4]} 23. Re3 {[%emt 0:01:30][%cal Of4h6]} (23. Qb3 {is interesting.} Qe7 24. Qg3 Nh5 25. Qd3) 23... Ne4 {[%emt 0:00:30]} 24. Bxe4 {[%emt 0:25:30]} dxe4 {[%emt 0:03:30]} 25. Qxe4 {[%emt 0:00:30]} f6 {[%emt 0:04:10]} 26. Nd3 {[%emt 0:01:30]} Bb3 {[%emt 0:02:48][%csl LRd1,LRe4][%cal Oe8e4]} 27. Qxe8+ {[%emt 0:01:30]} Qxe8 {[%emt 0:00:30]} 28. Rxe8+ {[%emt 0:00:30]} Rxe8 {[%emt 0:00:00]} 29. Rc1 {[%emt 0:06:09]} Ba7 {[%emt 0:02:52]} 30. Be3 {[%emt 0:00:25]} Rd8 {[%emt 0:00:00] [#]} (30... Bb8 $11 {remains equal.}) 31. Rc3 {[%emt 0:01:45]} (31. Rc7 $1 $16 {[%cal Rc7b7]} Bxd4 32. Bxd4 (32. Rxb7 Bd5 $11) 32... Rxd4 33. Nc5 Rd1+ 34. Kh2) 31... Bf7 $11 {[%emt 0:02:10]} 32. Nf4 {[%emt 0:00:15]} Bb8 {[%emt 0:00:19]} 33. Ne2 {[%emt 0:00:18]} g5 {[%emt 0:01:30]} 34. f3 {[%emt 0:00:44]} Bd5 {[%emt 0:00:30]} 35. Kf2 {[%emt 0:00:00]} Kf7 {[%emt 0:00:47]} 36. h4 {[%emt 0:02:57]} Kg6 {[%emt 0:01:51]} 37. Rc1 {[%emt 0:00:51]} Bc6 {[%emt 0:00:53] This pair of bishops is nice.} 38. g4 {[%emt 0:01:15]} gxh4 {[%emt 0:00:41]} 39. Rh1 {[%emt 0:01:19]} h5 {[%emt 0:00:11] [#] ...hxg4 would now be deadly.} 40. Rxh4 {[%emt 0:00:28]} hxg4 {[%emt 0:00:07]} 41. Rxg4+ {[%emt 0:00:53]} Kf7 {[%emt 0:00:30]} 42. Bh6 {[%emt 0:00:00]} Rh8 {[%emt 0:00:30] The position is equal.} 43. Rg7+ {[%emt 0:00:28]} Ke6 {[%emt 0:00:15]} 44. Bf4 {[%emt 0:00:09]} Ba7 {[%emt 0:01:26]} 45. Be3 {[%emt 0:00:23][%cal Od4d5] Strongly threatening d5+!} Rh2+ {[%emt 0:02:28]} 46. Rg2 {[%emt 0:00:00]} Rxg2+ {[%emt 0:00:19]} 47. Kxg2 {[%emt 0:00:13][%cal Od4d5][%mdl 4096] Endgame. Hoping for d5+! KBB-KBN} Kd5 {[%emt 0:00:30]} 48. b3 {[%emt 0:00:30]} Bb8 {[%emt 0:00:30]} 49. Nc3+ {[%emt 0:00:30]} Ke6 {[%emt 0:00:30]} 50. Kf2 {[%emt 0:00:30]} Bd6 {[%emt 0:00:30]} 51. Bc1 {[%emt 0:00:30]} f5 {[%emt 0:00:30]} 52. Ke3 {[%emt 0:00:30]} Bf8 {[%emt 0:00:30]} 53. Ke2 {[%emt 0:00:30]} Bg7 {[%emt 0:00:30]} 54. Be3 {[%emt 0:00:30]} Bf8 {[%emt 0:00:32]} 55. Bc1 {[%emt 0:02:20]} Bg7 {[%emt 0:00:06]} 56. Be3 {[%emt 0:00:00] Weighted Error Value: White=0.07 (flawless) /Black=0.09 (flawless) .  Mistake:       	White=1     	Black=2      Inaccurate:     	White=3     	Black=1      OK:         	White=20    	Black=24     Best:        	White=1     	Black=5} 1/2-1/2

[Event "8th Mersin Open 2024"]
[Site "Mersin"]
[Date "2024.11.13"]
[Round "6"]
[White "Ikonnikov, Vyacheslav"]
[Black "Shafei, Hamid"]
[Result "1-0"]
[ECO "E17"]
[WhiteElo "2465"]
[BlackElo "2018"]
[Annotator "RC"]
[PlyCount "55"]
[EventDate "2024.11.10"]
[EventType "swiss"]
[EventCountry "TUR"]
[SourceTitle "playchess.com"]
[Source "ChessBase"]
[SourceQuality "1"]
[TimeControl "5400+30"]

1. d4 {[%emt 0:01:00]} Nf6 {[%emt 0:01:00]} 2. Nf3 {[%emt 0:00:30]} e6 {[%emt 0:00:00]} 3. c4 {[%emt 0:00:00]} b6 {[%emt 0:00:00]} 4. g3 {[%emt 0:00:00]} Bb7 {[%emt 0:00:30]} 5. Bg2 {[%emt 0:00:30]} Be7 {[%emt 0:00:30]} 6. O-O {[%emt 0:00:30]} O-O {[%emt 0:00:00]} 7. Re1 {[%emt 0:01:30]} d5 {[%emt 0:05:00]} 8. cxd5 {[%emt 0:00:30]} exd5 {[%emt 0:00:30]} 9. Nc3 {[%emt 0:00:30]} Nbd7 {[%emt 0:03:30]} 10. Bf4 {[%emt 0:07:30]} Nh5 {[%emt 0:03:30]} 11. Bd2 {[%emt 0:10:30]} Nhf6 {[%emt 0:01:30]} 12. Qc2 {[%emt 0:02:30]} c5 {[%emt 0:02:30]} 13. Rad1 {[%emt 0:00:30]} Rc8 {[%emt 0:07:30]} 14. Bh3 {[%emt 0:08:30]} Re8 {[%emt 0:10:30]} 15. Qb1 {[%emt 0:00:30]} Ra8 {[%emt 0:00:30]} 16. Bf4 {[%emt 0:00:30]} a6 {[%emt 0:06:30]} 17. a3 {[%emt 0:22:30]} Nf8 {[%emt 0:05:30]} 18. Be5 {[%emt 0:00:30]} c4 {[%emt 0:06:30]} 19. Nd2 {[%emt 0:03:30]} N6d7 {[%emt 0:06:30]} 20. Bg2 {[%emt 0:00:30]} b5 {[%emt 0:04:30]} 21. Nxd5 {[%emt 0:05:30]} Nxe5 {[%emt 0:00:30]} 22. dxe5 {[%emt 0:00:30]} Bxd5 {[%emt 0:01:30]} 23. Nf1 {[%emt 0:01:30]} Qb6 {[%emt 0:04:30]} 24. Bxd5 {[%emt 0:02:30]} Bc5 {[%emt 0:02:30]} 25. e3 {[%emt 0:01:30]} Ra7 {[%emt 0:01:30]} 26. f4 {[%emt 0:00:30]} Rc7 {[%emt 0:00:00]} 27. Kg2 {[%emt 0:00:30]} c3 {[%emt 0:02:00]} 28. b4 {[%emt 0:05:30]} 1-0

[Event "8th Mersin Open 2024"]
[Site "Mersin"]
[Date "2024.11.13"]
[Round "6"]
[White "Yermolinsky, Alex"]
[Black "Abbasi Abeluie, Mohammad Mehdi"]
[Result "1-0"]
[ECO "E54"]
[WhiteElo "2417"]
[BlackElo "2218"]
[Annotator "RC"]
[PlyCount "52"]
[EventDate "2024.11.10"]
[EventType "swiss"]
[EventCountry "TUR"]
[SourceTitle "playchess.com"]
[Source "ChessBase"]
[SourceQuality "1"]
[TimeControl "5400+30"]

1. d4 {[%emt 0:03:00]} Nf6 {[%emt 0:02:00]} 2. c4 {[%emt 0:00:00]} e6 {[%emt 0:00:30]} 3. Nc3 {[%emt 0:02:00]} Bb4 {[%emt 0:01:30]} 4. e3 {[%emt 0:00:30]} O-O {[%emt 0:00:30]} 5. Bd3 {[%emt 0:01:30]} d5 {[%emt 0:03:30]} 6. Nf3 {[%emt 0:01:30]} dxc4 {[%emt 0:03:30]} 7. Bxc4 {[%emt 0:00:30]} c5 {[%emt 0:00:30]} 8. O-O {[%emt 0:00:30]} b6 {[%emt 0:05:30]} 9. a3 {[%emt 0:09:30]} Bxc3 {[%emt 0:04:30]} 10. bxc3 {[%emt 0:00:00]} Qc7 {[%emt 0:02:30]} 11. Bd3 {[%emt 0:01:00]} Bb7 {[%emt 0:00:30]} 12. Re1 {[%emt 0:04:30]} Be4 {[%emt 0:06:30]} 13. Be2 {[%emt 0:16:30]} Nbd7 {[%emt 0:00:30]} 14. Bb2 {[%emt 0:00:30]} Rfd8 {[%emt 0:00:30]} 15. c4 {[%emt 0:00:30]} cxd4 {[%emt 0:00:30]} 16. exd4 {[%emt 0:00:30]} Rac8 {[%emt 0:00:30]} 17. Rc1 {[%emt 0:05:30]} Nf8 {[%emt 0:11:30]} 18. Qb3 {[%emt 0:04:30]} Qb7 {[%emt 0:03:30]} 19. a4 {[%emt 0:04:30]} Ng6 {[%emt 0:01:30]} 20. g3 {[%emt 0:01:30]} Ne7 {[%emt 0:04:30]} 21. Ne5 {[%emt 0:08:30]} Qb8 {[%emt 0:13:30]} 22. Bf1 {[%emt 0:04:30]} Ba8 {[%emt 0:08:30]} 23. Bh3 {[%emt 0:01:30]} Rc7 {[%emt 0:05:30]} 24. Nxf7 {[%emt 0:00:30]} Kxf7 {[%emt 0:03:06]} 25. Bxe6+ {[%emt 0:00:30]} Kf8 {[%emt 0:00:00]} 26. d5 {[%emt 0:00:30]} Rc5 {[%emt 0:00:00]} 1-0

[Event "8th Mersin Open 2024"]
[Site "Mersin"]
[Date "2024.11.13"]
[Round "6"]
[White "Ebrahimi Herab, Hamidreza"]
[Black "Bernadskiy, Vitaliy"]
[Result "1/2-1/2"]
[ECO "E52"]
[WhiteElo "2386"]
[BlackElo "2543"]
[Annotator "TA"]
[PlyCount "39"]
[EventDate "2024.11.10"]
[EventType "swiss"]
[EventCountry "TUR"]
[SourceTitle "playchess.com"]
[Source "ChessBase"]
[SourceQuality "1"]
[TimeControl "5400+30"]

{[%evp 23,39,0,0,0,-6,-14,0,0,0,0,0,0,15,0,-3,-8,7,0]} 1. d4 {[%emt 0:09:00]} Nf6 {[%emt 0:01:00]} 2. c4 {[%emt 0:00:00]} e6 {[%emt 0:00:30]} 3. Nc3 {[%emt 0:00:00]} Bb4 {[%emt 0:00:30]} 4. Bd2 {[%emt 0:00:00]} O-O {[%emt 0:00:30]} 5. Nf3 {[%emt 0:00:00]} d5 {[%emt 0:01:30]} 6. e3 {[%emt 0:00:30]} Nbd7 {[%emt 0:04:30]} 7. Bd3 {[%emt 0:01:30]} dxc4 {[%emt 0:03:30]} 8. Bxc4 {[%emt 0:00:30]} b6 {[%emt 0:00:00]} 9. O-O {[%emt 0:00:00]} Bb7 {[%emt 0:00:00]} 10. Qe2 {[%emt 0:02:00]} c5 {[%emt 0:05:30]} 11. a3 {[%emt 0:03:30][%cal Ba2a3,Ba3a4,Ba4a5][%mdl 32]} Bxc3 {[%emt 0:00:00]} 12. Bxc3 {[%emt 0:00:30]} Ne4 {[%emt 0:00:00] The position is equal.} 13. Rfd1 {[%emt 0:02:30]} Nxc3 {[%emt 0:02:30]} 14. bxc3 {[%emt 0:00:30]} Qc7 {[%emt 0:00:00]} 15. Bd3 {[%emt 0:02:30]} Rac8 {[%emt 0:06:00]} 16. a4 {[%emt 0:08:30]} h6 {[%emt 0:01:30]} 17. h3 {[%emt 0:04:30]} Rfd8 {[%emt 0:00:30]} 18. e4 {[%emt 0:06:30]} cxd4 {[%emt 0:00:30]} 19. cxd4 {[%emt 0:00:30]} Qf4 {[%emt 0:00:30]} 20. a5 {[%emt 0:00:30] Not much happened in this game.   Weighted Error Value: White=0.03 (flawless) /Black=0.04 (flawless) .  OK:         	White=3     	Black=3} 1/2-1/2

[Event "8th Mersin Open 2024"]
[Site "Mersin"]
[Date "2024.11.13"]
[Round "6"]
[White "Cheng, Bindi"]
[Black "Gulden, Egemen"]
[Result "1-0"]
[ECO "E17"]
[WhiteElo "2368"]
[BlackElo "2084"]
[Annotator "RC"]
[PlyCount "105"]
[EventDate "2024.11.10"]
[EventType "swiss"]
[EventCountry "TUR"]
[SourceTitle "playchess.com"]
[Source "ChessBase"]
[SourceQuality "1"]
[TimeControl "5400+30"]

1. Nf3 {[%emt 0:01:00]} Nf6 {[%emt 0:04:00]} 2. c4 {[%emt 0:04:30]} b6 {[%emt 0:00:30]} 3. g3 {[%emt 0:00:30]} Bb7 {[%emt 0:00:30]} 4. Bg2 {[%emt 0:00:30]} e6 {[%emt 0:00:30]} 5. O-O {[%emt 0:00:00]} Be7 {[%emt 0:01:30]} 6. Nc3 {[%emt 0:00:00]} O-O {[%emt 0:00:30]} 7. Re1 {[%emt 0:00:30]} d5 {[%emt 0:00:30]} 8. cxd5 {[%emt 0:00:30]} exd5 {[%emt 0:03:30]} 9. d4 {[%emt 0:03:30]} Nbd7 {[%emt 0:02:30]} 10. Bf4 {[%emt 0:00:30]} a6 {[%emt 0:05:30]} 11. Qc2 {[%emt 0:01:30]} Bb4 {[%emt 0:04:30]} 12. a3 {[%emt 0:05:30]} Bxc3 {[%emt 0:00:30]} 13. Qxc3 {[%emt 0:00:00]} c5 {[%emt 0:02:30]} 14. dxc5 {[%emt 0:01:00]} bxc5 {[%emt 0:01:30]} 15. Qb3 {[%emt 0:01:30]} Bc6 {[%emt 0:03:30]} 16. Rac1 {[%emt 0:06:30]} Qa5 {[%emt 0:02:30]} 17. Qd3 {[%emt 0:02:30]} Qb6 {[%emt 0:04:30]} 18. Ne5 {[%emt 0:11:30]} c4 {[%emt 0:11:30]} 19. Qf5 {[%emt 0:01:30]} Rfe8 {[%emt 0:06:30]} 20. Be3 {[%emt 0:29:30]} Qc7 {[%emt 0:06:30]} 21. Nxc6 {[%emt 0:01:30]} Qxc6 {[%emt 0:00:30]} 22. Bd4 {[%emt 0:00:00]} Qe6 {[%emt 0:02:30]} 23. Qf4 {[%emt 0:02:00]} Rac8 {[%emt 0:01:30]} 24. Rcd1 {[%emt 0:04:30]} h6 {[%emt 0:04:30]} 25. h3 {[%emt 0:01:30]} Rcd8 {[%emt 0:03:30]} 26. Qc7 {[%emt 0:01:30]} Ne4 {[%emt 0:02:30]} 27. Ba7 {[%emt 0:08:16]} Ndf6 {[%emt 0:05:57]} 28. Qa5 {[%emt 0:00:33]} Rd7 {[%emt 0:01:28]} 29. Bd4 {[%emt 0:00:11]} Rb8 {[%emt 0:00:56]} 30. Kh2 {[%emt 0:03:12]} Rb5 {[%emt 0:00:35]} 31. Qa4 {[%emt 0:00:14]} Nc5 {[%emt 0:03:58]} 32. Qc2 {[%emt 0:00:43]} Nb3 {[%emt 0:00:16]} 33. a4 {[%emt 0:03:11]} Nxd4 {[%emt 0:02:18]} 34. Rxd4 {[%emt 0:00:30]} Rb4 {[%emt 0:00:00]} 35. Red1 {[%emt 0:02:06]} Qc6 {[%emt 0:06:25]} 36. e4 {[%emt 0:01:20]} Qxa4 {[%emt 0:04:29]} 37. Qxa4 {[%emt 0:00:30]} Rxa4 {[%emt 0:00:30]} 38. e5 {[%emt 0:00:00]} Ne8 {[%emt 0:02:25]} 39. Bxd5 {[%emt 0:00:00]} Re7 {[%emt 0:01:59]} 40. Bxc4 {[%emt 0:00:00]} Kf8 {[%emt 0:00:00]} 41. f4 {[%emt 0:00:32]} g5 {[%emt 0:00:40]} 42. Kg2 {[%emt 0:01:11]} Rc7 {[%emt 0:00:54]} 43. b3 {[%emt 0:00:30]} Ra2+ {[%emt 0:00:12]} 44. Kf3 {[%emt 0:00:00]} Ke7 45. f5 {[%emt 0:00:28]} Ra5 {[%emt 0:00:42]} 46. f6+ {[%emt 0:00:46]} Kf8 {[%emt 0:00:34]} 47. Ke4 {[%emt 0:00:14]} Rcc5 {[%emt 0:00:33]} 48. Rd5 {[%emt 0:00:30]} Nc7 {[%emt 0:00:31]} 49. Rd8+ {[%emt 0:00:57]} Ne8 {[%emt 0:00:34]} 50. R1d7 {[%emt 0:00:30]} Rxe5+ {[%emt 0:00:30]} 51. Kd4 {[%emt 0:00:30]} Rac5 {[%emt 0:00:30]} 52. Rxf7+ {[%emt 0:00:30]} Kg8 {[%emt 0:00:30]} 53. Rg7+ {[%emt 0:00:30]} 1-0

[Event "8th Mersin Open 2024"]
[Site "Mersin"]
[Date "2024.11.13"]
[Round "6"]
[White "Bicer, Atakan Mert"]
[Black "Zerey, Demhat"]
[Result "0-1"]
[ECO "C07"]
[WhiteElo "2342"]
[BlackElo "2194"]
[Annotator "RC"]
[PlyCount "70"]
[EventDate "2024.11.10"]
[EventType "swiss"]
[EventCountry "TUR"]
[SourceTitle "playchess.com"]
[Source "ChessBase"]
[SourceQuality "1"]
[TimeControl "5400+30"]

1. e4 {[%emt 0:01:00]} e6 {[%emt 0:05:00]} 2. d4 {[%emt 0:00:00]} d5 {[%emt 0:02:30]} 3. Nd2 {[%emt 0:00:00]} c5 {[%emt 0:01:30]} 4. Ngf3 {[%emt 0:00:30]} cxd4 {[%emt 0:00:00]} 5. Nxd4 {[%emt 0:00:30]} Nc6 {[%emt 0:00:00]} 6. Bb5 {[%emt 0:00:30]} Bd7 {[%emt 0:00:30]} 7. Nxc6 {[%emt 0:00:30]} bxc6 {[%emt 0:00:00]} 8. Bd3 {[%emt 0:00:00]} Bd6 {[%emt 0:00:00]} 9. Qe2 {[%emt 0:01:00]} e5 {[%emt 0:00:00]} 10. c4 {[%emt 0:01:30]} d4 {[%emt 0:01:00]} 11. O-O {[%emt 0:01:30]} Qe7 {[%emt 0:01:30]} 12. c5 {[%emt 0:04:30]} Bxc5 {[%emt 0:00:30]} 13. Nc4 {[%emt 0:00:30]} Nf6 {[%emt 0:00:30]} 14. f4 {[%emt 0:02:30]} exf4 {[%emt 0:01:30]} 15. Bxf4 {[%emt 0:07:30]} Ng4 {[%emt 0:00:30]} 16. h3 {[%emt 0:20:30]} Ne3 {[%emt 0:00:30]} 17. Nxe3 {[%emt 0:00:30]} dxe3 {[%emt 0:00:30]} 18. Kh1 {[%emt 0:00:00]} O-O {[%emt 0:00:30]} 19. Rac1 {[%emt 0:04:00]} a5 {[%emt 0:04:30]} 20. e5 {[%emt 0:03:30]} g6 {[%emt 0:11:30]} 21. Bxe3 {[%emt 0:10:30]} Bxe3 {[%emt 0:00:30]} 22. Qxe3 {[%emt 0:00:00]} a4 {[%emt 0:04:30]} 23. a3 {[%emt 0:12:00]} Ra5 {[%emt 0:04:30]} 24. Rce1 {[%emt 0:00:30]} Be6 {[%emt 0:03:30]} 25. Rf6 {[%emt 0:02:30]} Rb8 {[%emt 0:13:30]} 26. Re2 {[%emt 0:05:30]} Qd7 {[%emt 0:07:30]} 27. Bc2 {[%emt 0:05:27]} Rbb5 {[%emt 0:15:30]} 28. Qg3 {[%emt 0:03:25]} Qd4 {[%emt 0:02:30]} 29. Rf4 {[%emt 0:01:15]} Qb6 {[%emt 0:00:50]} 30. Qg5 {[%emt 0:09:36]} Qb8 {[%emt 0:05:05]} 31. Qf6 {[%emt 0:03:42]} Rxe5 {[%emt 0:02:23]} 32. Rd2 {[%emt 0:00:32]} Rad5 {[%emt 0:01:47]} 33. Rxd5 {[%emt 0:00:29]} Bxd5 {[%emt 0:00:18]} 34. Bd3 {[%emt 0:00:53]} Re3 {[%emt 0:04:16]} 35. Qd4 {[%emt 0:00:37]} Rxd3 {[%emt 0:00:09]} 0-1

[Event "8th Mersin Open 2024"]
[Site "Mersin"]
[Date "2024.11.13"]
[Round "6"]
[White "Jinan Jomon"]
[Black "Biriya, Mohammadamin"]
[Result "1-0"]
[ECO "B11"]
[WhiteElo "2342"]
[BlackElo "2139"]
[Annotator "RC"]
[PlyCount "54"]
[EventDate "2024.11.10"]
[EventType "swiss"]
[EventCountry "TUR"]
[SourceTitle "playchess.com"]
[Source "ChessBase"]
[SourceQuality "1"]
[TimeControl "5400+30"]

1. e4 {[%emt 0:01:00]} c6 {[%emt 0:12:00]} 2. Nc3 {[%emt 0:00:30]} d5 {[%emt 0:00:30]} 3. Nf3 {[%emt 0:00:30]} dxe4 {[%emt 0:00:00]} 4. Nxe4 {[%emt 0:00:00]} Nf6 {[%emt 0:00:00]} 5. Qe2 {[%emt 0:04:00]} Nxe4 {[%emt 0:00:30]} 6. Qxe4 {[%emt 0:00:30]} Nd7 {[%emt 0:00:30]} 7. Bc4 {[%emt 0:00:30]} Nf6 {[%emt 0:00:30]} 8. Ne5 {[%emt 0:00:30]} e6 {[%emt 0:00:30]} 9. Qe2 {[%emt 0:01:30]} b5 {[%emt 0:00:00]} 10. Bb3 {[%emt 0:00:30]} Qc7 {[%emt 0:01:00]} 11. O-O {[%emt 0:05:30]} Bd6 {[%emt 0:02:30]} 12. d4 {[%emt 0:00:00]} O-O {[%emt 0:01:30]} 13. Bf4 {[%emt 0:13:00]} b4 {[%emt 0:20:30]} 14. Rad1 {[%emt 0:03:30]} a5 {[%emt 0:00:30]} 15. Bc4 {[%emt 0:00:30]} Bb7 {[%emt 0:01:30]} 16. Rfe1 {[%emt 0:21:30]} Nd5 {[%emt 0:09:30]} 17. Bg3 {[%emt 0:02:30]} a4 {[%emt 0:00:00]} 18. Qh5 {[%emt 0:13:30]} Ba6 {[%emt 0:02:00]} 19. Rd3 {[%emt 0:07:30]} a3 {[%emt 0:03:30]} 20. bxa3 {[%emt 0:04:42]} bxa3 {[%emt 0:00:30]} 21. Bxa6 {[%emt 0:01:03]} Rxa6 {[%emt 0:00:30]} 22. c4 {[%emt 0:00:44]} Nf6 {[%emt 0:05:30]} 23. Qd1 {[%emt 0:05:01]} Nd7 {[%emt 0:01:30]} 24. Bf4 {[%emt 0:02:40]} Rd8 {[%emt 0:04:30]} 25. c5 {[%emt 0:02:29]} Bf8 {[%emt 0:03:30]} 26. Nxf7 {[%emt 0:00:35]} Qxf4 {[%emt 0:05:30]} 27. Nxd8 {[%emt 0:00:09]} Ra8 {[%emt 0:01:30]} 1-0

[Event "8th Mersin Open 2024"]
[Site "Mersin"]
[Date "2024.11.13"]
[Round "6"]
[White "Baradaran Tamadon, Arian"]
[Black "Annaberdiyev, Meylis"]
[Result "1-0"]
[ECO "B32"]
[WhiteElo "2323"]
[BlackElo "2443"]
[Annotator "RC"]
[PlyCount "76"]
[EventDate "2024.11.10"]
[EventType "swiss"]
[EventCountry "TUR"]
[SourceTitle "playchess.com"]
[Source "ChessBase"]
[SourceQuality "1"]
[TimeControl "5400+30"]

1. e4 {[%emt 0:01:00]} c5 {[%emt 0:02:00]} 2. Nf3 {[%emt 0:00:00]} Nc6 {[%emt 0:00:30]} 3. d4 {[%emt 0:00:00]} cxd4 {[%emt 0:00:30]} 4. Nxd4 {[%emt 0:00:30]} e5 {[%emt 0:00:00]} 5. Nb5 {[%emt 0:00:00]} d6 {[%emt 0:00:00]} 6. c4 {[%emt 0:00:00]} Be6 {[%emt 0:00:00]} 7. N5c3 {[%emt 0:00:30]} Nf6 {[%emt 0:01:00]} 8. Be2 {[%emt 0:00:30]} g6 {[%emt 0:02:30]} 9. Be3 {[%emt 0:01:30]} Bg7 {[%emt 0:00:30]} 10. Na3 {[%emt 0:01:30]} a6 {[%emt 0:02:30]} 11. Qd2 {[%emt 0:01:30]} O-O {[%emt 0:00:30]} 12. Nc2 {[%emt 0:03:30]} Rc8 {[%emt 0:01:30]} 13. b3 {[%emt 0:10:30]} Ne7 {[%emt 0:04:30]} 14. Rc1 {[%emt 0:11:30]} b5 {[%emt 0:15:30]} 15. cxb5 {[%emt 0:01:30]} axb5 {[%emt 0:00:00]} 16. Bxb5 {[%emt 0:04:30]} Qa5 {[%emt 0:02:00]} 17. b4 {[%emt 0:00:30]} Qa8 {[%emt 0:10:30]} 18. f3 {[%emt 0:10:30]} Qb7 {[%emt 0:06:30]} 19. a4 {[%emt 0:06:30]} Rfd8 {[%emt 0:03:30]} 20. Qd3 {[%emt 0:14:30]} d5 {[%emt 0:02:30]} 21. exd5 {[%emt 0:14:56]} Nexd5 {[%emt 0:00:30]} 22. Nxd5 {[%emt 0:03:07]} Nxd5 {[%emt 0:00:30]} 23. Ba6 {[%emt 0:03:13]} Nxe3 {[%emt 0:03:30]} 24. Bxb7 {[%emt 0:00:48]} Nxg2+ {[%emt 0:17:30]} 25. Kf1 {[%emt 0:00:04]} Nf4 {[%emt 0:00:30]} 26. Qe3 {[%emt 0:04:38]} Rc7 {[%emt 0:14:58]} 27. Ba6 {[%emt 0:00:23]} Bh6 {[%emt 0:00:26]} 28. h4 {[%emt 0:01:27]} Rd6 {[%emt 0:01:23]} 29. Bb5 {[%emt 0:00:15]} e4 {[%emt 0:01:32]} 30. Ne1 {[%emt 0:00:56]} Rb7 {[%emt 0:03:36]} 31. fxe4 {[%emt 0:01:33]} Kg7 {[%emt 0:00:46]} 32. Qc5 {[%emt 0:00:30]} Rd8 {[%emt 0:00:00]} 33. Rh2 {[%emt 0:01:32]} Kg8 {[%emt 0:00:04]} 34. Qc3 {[%emt 0:00:53]} Nh5 {[%emt 0:00:33]} 35. Rcc2 {[%emt 0:00:41]} Bf4 {[%emt 0:00:28]} 36. Rhd2 {[%emt 0:00:15]} Rf8 {[%emt 0:01:04]} 37. Kg2 {[%emt 0:00:25]} g5 {[%emt 0:01:01]} 38. Nd3 {[%emt 0:00:25]} gxh4 {[%emt 0:00:00]} 1-0

[Event "8th Mersin Open 2024"]
[Site "Mersin"]
[Date "2024.11.13"]
[Round "6"]
[White "Gurbanov, Ismayil"]
[Black "Mohannad, Farhan"]
[Result "1-0"]
[ECO "C10"]
[WhiteElo "2261"]
[BlackElo "2115"]
[Annotator "RC"]
[PlyCount "83"]
[EventDate "2024.11.10"]
[EventType "swiss"]
[EventCountry "TUR"]
[SourceTitle "playchess.com"]
[Source "ChessBase"]
[SourceQuality "1"]
[TimeControl "5400+30"]

1. e4 {[%emt 0:01:00]} e6 {[%emt 0:01:00]} 2. d4 {[%emt 0:00:30]} d5 {[%emt 0:00:00]} 3. Nd2 {[%emt 0:00:30]} dxe4 {[%emt 0:00:00]} 4. Nxe4 {[%emt 0:00:30]} Nd7 {[%emt 0:00:30]} 5. Be3 {[%emt 0:00:00]} Ngf6 {[%emt 0:00:30]} 6. Nxf6+ {[%emt 0:00:00]} Nxf6 {[%emt 0:00:00]} 7. Nf3 {[%emt 0:00:30]} Bd6 {[%emt 0:00:00]} 8. Bd3 {[%emt 0:01:30]} Qe7 {[%emt 0:00:00]} 9. O-O {[%emt 0:00:30]} c5 {[%emt 0:03:00]} 10. Qe2 {[%emt 0:00:30]} Qc7 {[%emt 0:04:30]} 11. Bb5+ {[%emt 0:40:30]} Bd7 {[%emt 0:00:30]} 12. Rad1 {[%emt 0:01:30]} O-O-O {[%emt 0:12:30]} 13. dxc5 {[%emt 0:02:30]} Bxc5 {[%emt 0:00:30]} 14. Bxc5 {[%emt 0:00:30]} Qxc5 {[%emt 0:00:30]} 15. Bxd7+ {[%emt 0:00:30]} Rxd7 {[%emt 0:00:30]} 16. Ne5 {[%emt 0:00:30]} Rc7 {[%emt 0:00:30]} 17. c4 {[%emt 0:07:30]} Rd8 {[%emt 0:09:30]} 18. Rxd8+ {[%emt 0:01:30]} Kxd8 {[%emt 0:00:00]} 19. Rd1+ {[%emt 0:00:00]} Ke8 {[%emt 0:03:00]} 20. Qd2 {[%emt 0:07:00]} Rc8 {[%emt 0:06:30]} 21. Qf4 {[%emt 0:06:30]} Qe7 {[%emt 0:11:30]} 22. Qd4 {[%emt 0:00:30]} Qc5 {[%emt 0:00:30]} 23. Qf4 {[%emt 0:07:30]} Qe7 {[%emt 0:00:30]} 24. g4 {[%emt 0:02:43]} Rc7 {[%emt 0:05:30]} 25. Qd4 {[%emt 0:03:03]} b6 {[%emt 0:03:30]} 26. b4 {[%emt 0:01:06]} Kf8 {[%emt 0:09:30]} 27. b5 {[%emt 0:03:41]} Ne8 {[%emt 0:01:30]} 28. Nc6 {[%emt 0:00:56]} Qg5 {[%emt 0:00:30]} 29. h3 {[%emt 0:00:00]} h5 {[%emt 0:07:30]} 30. Qe5 {[%emt 0:02:42]} Qxe5 {[%emt 0:01:30]} 31. Nxe5 {[%emt 0:00:12]} hxg4 {[%emt 0:00:00]} 32. hxg4 {[%emt 0:00:07]} f6 {[%emt 0:06:09]} 33. Nc6 {[%emt 0:00:05]} e5 {[%emt 0:01:15]} 34. Rd8 {[%emt 0:00:04]} Kf7 {[%emt 0:00:00]} 35. Kf1 {[%emt 0:00:18]} g5 {[%emt 0:02:58]} 36. Ke2 {[%emt 0:00:30]} Ng7 {[%emt 0:00:30]} 37. Ra8 {[%emt 0:00:00]} a5 {[%emt 0:03:52]} 38. c5 {[%emt 0:00:53]} bxc5 {[%emt 0:00:45]} 39. Nd8+ {[%emt 0:00:01]} Ke7 {[%emt 0:01:59]} 40. b6 {[%emt 0:00:02]} Rd7 {[%emt 0:00:59]} 41. b7 {[%emt 0:00:30]} Rxd8 {[%emt 0:00:00]} 42. Rxd8 {[%emt 0:00:00]} 1-0